fUSD/lending_fUSD_20250214
["ID","MTS","AMOUNT","RATE_DAILY","PERIOD"]
[353111319,1739563881583,-4608.6,0.00014027,2]
[353111320,1739563881592,-500.0,0.00014027,2]
[353111321,1739563881602,-500.0,0.00014027,2]
[353111322,1739563881611,-367.94992885,0.00014027,2]
[353111323,1739563881624,-1342.97007115,0.00014027,2]
[353111324,1739563881634,-1214.80899051,0.00014027,2]
[353111325,1739563881663,-500.0,0.00013698,2]
[353111326,1739563881672,-2247.08,0.00013698,2]
[353111327,1739563881683,-1311.65100949,0.00014027,2]
[353111328,1739563881692,-2579.87,0.00014027,2]
[353111329,1739563881703,-500.0,0.00014027,2]
[353111330,1739563881712,-3574.71311671,0.00014027,2]
[353111331,1739563881724,-130.97688329,0.00014027,2]
[353111332,1739563881734,-150.57311671,0.00014027,2]
[353111333,1739563881746,-349.42688329,0.00014027,2]
[353111334,1739563881756,-500.0,0.00014027,2]
[353111335,1739563881766,-500.0,0.00014027,2]
[353111336,1739563881776,-3939.13,0.00014027,2]
[353111337,1739563881785,-3249.7,0.00014027,2]
[353111338,1739563881795,-1898.28,0.00014027,2]
[353111339,1739563881804,-3126.6,0.00014027,2]
[353111340,1739563881814,-2747.99,0.00014027,2]
[353111341,1739563881823,-508.99,0.00014027,2]
[353111342,1739563881833,-5009.47,0.00014027,2]
[353111343,1739563881842,-500.0,0.00014027,2]
[353111344,1739563881851,-500.0,0.00014027,2]
[353111345,1739563881861,-2056.13,0.00014027,2]
[353111346,1739563881870,-294.581972,0.00014027,2]
[353111347,1739563881880,-751.62,0.00014027,2]
[353111348,1739563881891,-500.0,0.00014027,2]
[353111349,1739563881900,-3402.8,0.00014027,2]
[353111350,1739563881910,-296.324661,0.00014027,2]
[353111351,1739563881920,-3505.75,0.00014027,2]
[353111352,1739563881931,-3153.08,0.00014027,2]
[353111353,1739563881941,-164.141198,0.00014027,2]
[353111354,1739563881951,-2558.24,0.00014027,2]
[353111355,1739563881962,-500.0,0.00014027,2]
[353111356,1739563881972,-1719.88,0.00014027,2]
[353111357,1739563881982,-1199.35,0.00014027,2]
[353111358,1739563881993,-608.55,0.00014027,2]
[353111359,1739563882003,-500.0,0.00014027,2]
[353111360,1739563882013,-2029.74,0.00014027,2]
[353111361,1739563882024,-3172.24,0.00014027,2]
[353111362,1739563882035,-982.33,0.00014027,2]
[353111363,1739563882045,-500.0,0.00014027,2]
[353111364,1739563882054,-1260.25,0.00014027,2]
[353111365,1739563882063,-3830.7,0.00014027,2]
[353111366,1739563882073,-712.2,0.00014027,2]
[353111367,1739563882083,-500.0,0.00014027,2]
[353111368,1739563882092,-151.0,0.00014027,2]
[353111369,1739563882102,-4128.85,0.00014027,2]
[353111370,1739563882113,-1339.72,0.00014027,2]
[353111371,1739563882123,-960.59,0.00014027,2]
[353111372,1739563882133,-1280.89,0.00014027,2]
[353111373,1739563882144,-500.0,0.00014027,2]
[353111374,1739563882154,-4003.52,0.00014027,2]
[353111375,1739563882164,-4835.24,0.00014027,2]
[353111376,1739563882174,-500.0,0.00014027,2]
[353111377,1739563882184,-3628.74,0.00014027,2]
[353111378,1739563882194,-5779.5,0.00014027,2]
[353111379,1739563882203,-500.0,0.00014027,2]
[353111380,1739563882213,-888.5,0.00014027,2]
[353111381,1739563882223,-8834.81,0.00014027,2]
[353111382,1739563882234,-872.5,0.00014027,2]
[353111383,1739563882248,-500.0,0.00014027,2]
[353111384,1739563882259,-500.0,0.00014027,2]
[353111385,1739563882271,-2332.51,0.00014027,2]
[353111386,1739563882285,-1034.36,0.00014027,2]
[353111387,1739563882295,-2184.82,0.00014027,2]
[353111388,1739563882305,-554.07,0.00014027,2]
[353111389,1739563882315,-1987.19,0.00014027,2]
[353111390,1739563882325,-4912.6,0.00014027,2]
[353111391,1739563882337,-500.0,0.00014027,2]
[353111392,1739563882348,-1097.4,0.00014027,2]
[353111393,1739563882359,-500.0,0.00014027,2]
[353111394,1739563882369,-3020.58,0.00014027,2]
[353111395,1739563882383,-1083.99,0.00014027,2]
[353111396,1739563882394,-1015.72,0.00014027,2]
[353111397,1739563882403,-1064.67,0.00014027,2]
[353111398,1739563882414,-505.64254257,0.00014027,2]
[353111399,1739563882424,-151.0,0.00014027,2]
[353111400,1739563882434,-3463.46,0.00014027,2]
[353111401,1739563882445,-743.74,0.00014027,2]
[353111402,1739563882456,-672.87,0.00014027,2]
[353111403,1739563882466,-2341.5,0.00014027,2]
[353111404,1739563882476,-585.95,0.00014027,2]
[353111405,1739563882486,-500.0,0.00014027,2]
[353111406,1739563882496,-1938.45,0.00014027,2]
[353111407,1739563882505,-1204.22,0.00014027,2]
[353111408,1739563882515,-622.41,0.00014027,2]
[353111409,1739563882526,-500.0,0.00014027,2]
[353111410,1739563882537,-659.4316026,0.00014036,2]
[353111411,1739563882547,-2538.7897,0.0001405,2]
[353111412,1739563882558,-150.0,0.00014068,2]
[353111413,1739563882568,-500.0,0.00014077,2]
[353111414,1739563882578,-659.4316026,0.00014091,2]
[353111415,1739563882588,-500.0,0.00014109,2]
[353111416,1739563882598,-500.0,0.00014109,2]
[353111417,1739563882608,-500.0,0.00014109,2]
[353111418,1739563882618,-500.0,0.00014109,2]
[353111419,1739563882628,-942.67,0.00014109,2]
[353111420,1739563882638,-500.0,0.00014109,2]
[353111421,1739563882648,-676.71,0.00014109,2]
[353111422,1739563882659,-697.37,0.00014109,2]
[353111423,1739563882669,-500.0,0.00014109,2]
[353111424,1739563882679,-921.36,0.00014109,2]
[353111425,1739563882688,-500.0,0.00014109,2]
[353111426,1739563882699,-739.46,0.00014109,2]
[353111427,1739563882709,-500.0,0.00014109,2]
[353111428,1739563882719,-500.0,0.00014109,2]
[353111429,1739563882729,-500.0,0.00014109,2]
[353111430,1739563882739,-616.46,0.00014109,2]
[353111431,1739563882749,-742.2,0.00014109,2]
[353111432,1739563882758,-628.42,0.00014109,2]
[353111433,1739563882768,-505.86,0.00014109,2]
[353111434,1739563882779,-569.87,0.00014109,2]
[353111435,1739563882789,-879.66,0.00014109,2]
[353111436,1739563882799,-500.0,0.00014109,2]
[353111437,1739563882809,-500.0,0.00014109,2]
[353111438,1739563882820,-500.0,0.00014109,2]
[353111439,1739563882830,-500.0,0.00014109,2]
[353111440,1739563882839,-500.0,0.00014109,2]
[353111441,1739563882849,-843.42,0.00014109,2]
[353111442,1739563882859,-500.0,0.00014109,2]
[353111443,1739563882870,-473.60993232,0.00014109,2]
[353111444,1739563882880,-500.0,0.00014109,2]
[353111445,1739563882889,-500.0,0.00014109,2]
[353111446,1739563882899,-500.0,0.00014109,2]
[353111447,1739563882916,-500.0,0.00014109,2]
[353111448,1739563882926,-500.0,0.00014109,2]
[353111449,1739563882936,-856.63,0.00014109,2]
[353111450,1739563882945,-500.0,0.00014109,2]
[353111451,1739563882955,-661.56,0.00014109,2]
[353111452,1739563882965,-500.0,0.00014109,2]
[353111453,1739563882975,-500.0,0.00014109,2]
[353111454,1739563882985,-500.0,0.00014109,2]
[353111455,1739563882996,-531.99,0.00014109,2]
[353111456,1739563883007,-500.0,0.00014109,2]
[353111457,1739563883016,-500.0,0.00014109,2]
[353111458,1739563883027,-500.0,0.00014109,2]
[353111459,1739563883037,-625.08,0.00014109,2]
[353111460,1739563883047,-853.7,0.00014109,2]
[353111461,1739563883057,-500.0,0.00014109,2]
[353111462,1739563883066,-500.0,0.00014109,2]
[353111463,1739563883075,-500.0,0.00014109,2]
[353111464,1739563883086,-676.98,0.00014109,2]
[353111465,1739563883200,-263.34525561,0.00014109,2]
[353111466,1739563883210,-500.0,0.00014109,2]
[353111467,1739563883221,-500.0,0.00014109,2]
[353111468,1739563883232,-500.0,0.00014109,2]
[353111469,1739563883241,-500.0,0.00014109,2]
[353111470,1739563883249,-950.09,0.00014109,2]
[353111471,1739563883259,-668.29,0.00014109,2]
[353111472,1739563883270,-500.0,0.00014109,2]
[353111473,1739563883281,-500.0,0.00014109,2]
[353111474,1739563883291,-660.92,0.00014109,2]
[353111475,1739563883301,-995.95,0.00014109,2]
[353111476,1739563883311,-500.0,0.00014109,2]
[353111477,1739563883321,-500.0,0.00014109,2]
[353111478,1739563883331,-648.83081848,0.00014109,2]
[353111479,1739563883342,-500.0,0.00014109,2]
[353111480,1739563883353,-1709.4,0.00014109,2]
[353111481,1739563883363,-500.0,0.00014109,2]
[353111482,1739563883376,-500.0,0.00014109,2]
[353111483,1739563883386,-500.0,0.00014109,2]
[353111484,1739563883395,-500.0,0.00014109,2]
[353111485,1739563883404,-523.35,0.00014109,2]
[353111486,1739563883417,-500.0,0.00014109,2]
[353111487,1739563883428,-500.0,0.00014109,2]
[353111488,1739563883439,-500.0,0.00014109,2]
[353111489,1739563883450,-1180.81,0.00014109,2]
[353111490,1739563883460,-500.0,0.00014109,2]
[353111491,1739563883470,-437.53940304,0.00014109,2]
[353111492,1739563883480,-500.0,0.00014109,2]
[353111493,1739563883490,-755.13,0.00014109,2]
[353111494,1739563883500,-500.0,0.00014109,2]
[353111495,1739563883510,-500.0,0.00014109,2]
[353111496,1739563883520,-1199.62,0.00014109,2]
[353111497,1739563883531,-631.11,0.00014109,2]
[353111498,1739563883542,-1531.24,0.00014109,2]
[353111499,1739563883552,-1064.28,0.00014109,2]
[353111500,1739563883562,-500.0,0.00014109,2]
[353111501,1739563883572,-500.0,0.00014109,2]
[353111502,1739563883581,-500.0,0.00014109,2]
[353111503,1739563883591,-500.0,0.00014109,2]
[353111504,1739563883600,-500.0,0.00014109,2]
[353111505,1739563883609,-1025.43,0.00014109,2]
[353111506,1739563883618,-2028.79,0.00014109,2]
[353111507,1739563883628,-500.0,0.00014109,2]
[353111508,1739563883639,-500.0,0.00014109,2]
[353111509,1739563883647,-500.0,0.00014109,2]
[353111510,1739563883656,-500.0,0.00014109,2]
[353111511,1739563883667,-758.5,0.00014109,2]
[353111512,1739563883676,-500.0,0.00014109,2]
[353111513,1739563883687,-1698.76,0.00014109,2]
[353111514,1739563883696,-804.17,0.00014109,2]
[353111515,1739563883707,-500.0,0.00014109,2]
[353111516,1739563883718,-1295.63,0.00014109,2]
[353111517,1739563883728,-500.0,0.00014109,2]
[353111518,1739563883738,-507.67,0.00014109,2]
[353111519,1739563883749,-1117.17,0.00014109,2]
[353111520,1739563883759,-688.3,0.00014109,2]
[353111521,1739563883769,-500.0,0.00014109,2]
[353111522,1739563883780,-836.44,0.00014109,2]
[353111523,1739563883791,-500.0,0.00014109,2]
[353111524,1739563883802,-1041.16,0.00014109,2]
[353111525,1739563883812,-474.68569414,0.00014109,2]
[353111526,1739563883823,-852.14,0.00014109,2]
[353111527,1739563883833,-1937.88,0.00014109,2]
[353111528,1739563883847,-500.0,0.00014109,2]
[353111529,1739563883860,-1330.27,0.00014109,2]
[353111530,1739563883875,-500.0,0.00014109,2]
[353111531,1739563883888,-575.1,0.00014109,2]
[353111532,1739563883898,-2044.64,0.00014109,2]
[353111533,1739563883907,-642.84,0.00014109,2]
[353111534,1739563883917,-2030.11,0.00014109,2]
[353111535,1739563883929,-698.08,0.00014109,2]
[353111536,1739563883939,-798.39,0.00014109,2]
[353111537,1739563883948,-500.0,0.00014109,2]
[353111538,1739563883958,-2250.74,0.00014109,2]
[353111539,1739563883967,-1404.78,0.00014109,2]
[353111540,1739563883977,-500.0,0.00014109,2]
[353111541,1739563883986,-500.0,0.00014109,2]
[353111542,1739563883996,-796.51,0.00014109,2]
[353111543,1739563884006,-500.0,0.00014109,2]
[353111544,1739563884015,-500.0,0.00014109,2]
[353111545,1739563884026,-1623.37,0.00014109,2]
[353111546,1739563884039,-501.26,0.00014109,2]
[353111547,1739563884049,-883.87,0.00014109,2]
[353111548,1739563884059,-500.0,0.00014109,2]
[353111549,1739563884069,-500.0,0.00014109,2]
[353111550,1739563884078,-784.8,0.00014109,2]
[353111551,1739563884088,-623.91,0.00014109,2]
[353111552,1739563884099,-505.25,0.00014109,2]
[353111553,1739563884109,-962.51,0.00014109,2]
[353111554,1739563884119,-500.0,0.00014109,2]
[353111555,1739563884130,-500.0,0.00014109,2]
[353111556,1739563884139,-504.89968958,0.00014109,2]
[353111557,1739563884150,-721.61,0.00014109,2]
[353111558,1739563884160,-825.62,0.00014109,2]
[353111559,1739563884170,-784.42,0.00014109,2]
[353111560,1739563884180,-500.0,0.00014109,2]
[353111561,1739563884189,-1280.46,0.00014109,2]
[353111562,1739563884199,-1808.0,0.00014109,2]
[353111563,1739563884209,-500.0,0.00014109,2]
[353111564,1739563884219,-607.26,0.00014109,2]
[353111565,1739563884229,-500.0,0.00014109,2]
[353111566,1739563884239,-1169.14,0.00014109,2]
[353111567,1739563884249,-500.0,0.00014109,2]
[353111568,1739563884259,-500.0,0.00014109,2]
[353111569,1739563884268,-500.0,0.00014109,2]
[353111570,1739563884278,-1613.47,0.00014109,2]
[353111571,1739563884287,-500.0,0.00014109,2]
[353111572,1739563884297,-500.0,0.00014109,2]
[353111573,1739563884306,-500.0,0.00014109,2]
[353111574,1739563884317,-500.0,0.00014109,2]
[353111575,1739563884326,-485.73539109,0.00014109,2]
[353111576,1739563884337,-1107.07,0.00014109,2]
[353111577,1739563884346,-151.0,0.00014109,2]
[353111578,1739563884355,-967.62,0.00014109,2]
[353111579,1739563884365,-754.08,0.00014109,2]
[353111580,1739563884379,-606.58,0.00014109,2]
[353111581,1739563884388,-500.0,0.00014109,2]
[353111582,1739563884397,-1281.16,0.00014109,2]
[353111583,1739563884406,-500.0,0.00014109,2]
[353111584,1739563884417,-663.92,0.00014109,2]
[353111585,1739563884426,-500.0,0.00014109,2]
[353111586,1739563884435,-500.0,0.00014109,2]
[353111587,1739563884446,-500.0,0.00014109,2]
[353111588,1739563884457,-854.68,0.00014109,2]
[353111589,1739563884466,-897.34,0.00014109,2]
[353111590,1739563884474,-1076.86,0.00014109,2]
[353111591,1739563884483,-1280.76,0.00014109,2]
[353111592,1739563884492,-612.38,0.00014109,2]
[353111593,1739563884502,-191.782681,0.00014109,2]
[353111594,1739563884511,-500.0,0.00014109,2]
[353111595,1739563884521,-603.04,0.00014109,2]
[353111596,1739563884531,-1338.87,0.00014109,2]
[353111597,1739563884541,-500.0,0.00014109,2]
[353111598,1739563884551,-607.73,0.00014109,2]
[353111599,1739563884560,-934.27,0.00014109,2]
[353111600,1739563884569,-500.0,0.00014109,2]
[353111601,1739563884578,-500.0,0.00014109,2]
[353111602,1739563884588,-500.0,0.00014109,2]
[353111603,1739563884598,-500.0,0.00014109,2]
[353111604,1739563884607,-1672.07,0.00014109,2]
[353111605,1739563884617,-577.53,0.00014109,2]
[353111606,1739563884626,-907.46,0.00014109,2]
[353111607,1739563884636,-500.0,0.00014109,2]
[353111608,1739563884646,-1068.63,0.00014109,2]
[353111609,1739563884655,-575.49,0.00014109,2]
[353111610,1739563884664,-668.43,0.00014109,2]
[353111611,1739563884674,-500.0,0.00014109,2]
[353111612,1739563884684,-572.87,0.00014109,2]
[353111613,1739563884693,-738.25,0.00014109,2]
[353111614,1739563884703,-500.0,0.00014109,2]
[353111615,1739563884714,-1304.96,0.00014109,2]
[353111616,1739563884723,-500.0,0.00014109,2]
[353111617,1739563884732,-883.57,0.00014109,2]
[353111618,1739563884742,-500.0,0.00014109,2]
[353111619,1739563884751,-500.0,0.00014109,2]
[353111620,1739563884760,-500.0,0.00014109,2]
[353111621,1739563884770,-500.0,0.00014109,2]
[353111622,1739563884781,-618.98,0.00014109,2]
[353111623,1739563884791,-500.0,0.00014109,2]
[353111624,1739563884800,-573.63,0.00014109,2]
[353111625,1739563884811,-640.68,0.00014109,2]
[353111626,1739563884819,-500.0,0.00014109,2]
[353111627,1739563884829,-500.0,0.00014109,2]
[353111628,1739563884839,-500.0,0.00014109,2]
[353111629,1739563884848,-500.0,0.00014109,2]
[353111630,1739563884857,-509.55942815,0.00014109,2]
[353111631,1739563884866,-629.82650175,0.00014109,2]
[353111632,1739563884875,-991.46,0.00014109,2]
[353111633,1739563884885,-698.97,0.00014109,2]
[353111634,1739563884894,-984.87,0.00014109,2]
[353111635,1739563884905,-1209.25,0.00014109,2]
[353111636,1739563884916,-525.62,0.00014109,2]
[353111637,1739563884925,-500.0,0.00014109,2]
[353111638,1739563884935,-500.0,0.00014109,2]
[353111639,1739563884944,-536.36,0.00014109,2]
[353111640,1739563884955,-877.73,0.00014109,2]
[353111641,1739563884965,-1372.53,0.00014109,2]
[353111642,1739563884974,-1335.45,0.00014109,2]
[353111643,1739563884984,-500.0,0.00014109,2]
[353111644,1739563884993,-500.0,0.00014109,2]
[353111645,1739563885004,-519.4,0.00014109,2]
[353111646,1739563885014,-500.0,0.00014109,2]
[353111647,1739563885023,-500.0,0.00014109,2]
[353111648,1739563885034,-500.0,0.00014109,2]
[353111649,1739563885044,-814.24,0.00014109,2]
[353111650,1739563885053,-893.93,0.00014109,2]
[353111651,1739563885063,-500.0,0.00014109,2]
[353111652,1739563885073,-980.55,0.00014109,2]
[353111653,1739563885082,-500.0,0.00014109,2]
[353111654,1739563885092,-2647.93,0.00014109,2]
[353111655,1739563885102,-624.08,0.00014109,2]
[353111656,1739563885112,-706.55,0.00014109,2]
[353111657,1739563885122,-500.0,0.00014109,2]
[353111658,1739563885132,-585.87,0.00014109,2]
[353111659,1739563885141,-1360.96,0.00014109,2]
[353111660,1739563885151,-579.67,0.00014109,2]
[353111661,1739563885161,-500.0,0.00014109,2]
[353111662,1739563885170,-500.0,0.00014109,2]
[353111663,1739563885180,-500.0,0.00014109,2]
[353111664,1739563885189,-902.8,0.00014109,2]
[353111665,1739563885198,-610.71,0.00014109,2]
[353111666,1739563885208,-1001.64,0.00014109,2]
[353111667,1739563885217,-500.0,0.00014109,2]
[353111668,1739563885227,-776.75,0.00014109,2]
[353111669,1739563885236,-987.29,0.00014109,2]
[353111670,1739563885246,-500.0,0.00014109,2]
[353111671,1739563885255,-919.94,0.00014109,2]
[353111672,1739563885264,-648.95240107,0.00014109,2]
[353111673,1739563885274,-728.31,0.00014109,2]
[353111674,1739563885287,-581.83,0.00014109,2]
[353111675,1739563885297,-1504.69,0.00014109,2]
[353111676,1739563885306,-975.51,0.00014109,2]
[353111677,1739563885316,-506.1148609,0.00014109,2]
[353111678,1739563885326,-500.0,0.00014109,2]
[353111679,1739563885336,-500.0,0.00014109,2]
[353111680,1739563885345,-1633.3,0.00014109,2]
[353111681,1739563885355,-518.74,0.00014109,2]
[353111682,1739563885365,-622.4,0.00014109,2]
[353111683,1739563885379,-500.0,0.00014109,2]
[353111684,1739563885389,-823.68,0.00014109,2]
[353111685,1739563885400,-848.64,0.00014109,2]
[353111686,1739563885411,-500.0,0.00014109,2]
[353111687,1739563885423,-500.0,0.00014109,2]
[353111688,1739563885432,-1282.24,0.00014109,2]
[353111689,1739563885443,-500.0,0.00014109,2]
[353111690,1739563885457,-500.0,0.00014109,2]
[353111691,1739563885467,-1711.64,0.00014109,2]
[353111692,1739563885478,-514.70097954,0.00014109,2]
[353111693,1739563885489,-787.78,0.00014109,2]
[353111694,1739563885498,-500.0,0.00014109,2]
[353111695,1739563885509,-500.0,0.00014109,2]
[353111696,1739563885519,-500.0,0.00014109,2]
[353111697,1739563885531,-500.0,0.00014109,2]
[353111698,1739563885541,-500.0,0.00014109,2]
[353111699,1739563885551,-878.18,0.00014109,2]
[353111700,1739563885561,-500.0,0.00014109,2]
[353111701,1739563885570,-500.0,0.00014109,2]
[353111702,1739563885580,-151.0,0.00014109,2]
[353111703,1739563885590,-663.1,0.00014109,2]
[353111704,1739563885601,-1374.74,0.00014109,2]
[353111705,1739563885611,-500.0,0.00014109,2]
[353111706,1739563885622,-1402.88,0.00014109,2]
[353111707,1739563885632,-1965.42,0.00014109,2]
[353111708,1739563885642,-500.0,0.00014109,2]
[353111709,1739563885652,-500.0,0.00014109,2]
[353111710,1739563885662,-822.86,0.00014109,2]
[353111711,1739563885672,-635.77,0.00014109,2]
[353111712,1739563885682,-1627.29,0.00014109,2]
[353111713,1739563885692,-500.0,0.00014109,2]
[353111714,1739563885702,-500.0,0.00014109,2]
[353111715,1739563885713,-968.89,0.00014109,2]
[353111716,1739563885723,-577.1,0.00014109,2]
[353111717,1739563885733,-500.0,0.00014109,2]
[353111718,1739563885743,-655.39,0.00014109,2]
[353111719,1739563885753,-814.03,0.00014109,2]
[353111720,1739563885763,-151.0,0.00014109,2]
[353111721,1739563885773,-500.0,0.00014109,2]
[353111722,1739563885784,-735.84,0.00014109,2]
[353111723,1739563885794,-1560.32,0.00014109,2]
[353111724,1739563885805,-1807.63,0.00014109,2]
[353111725,1739563885815,-151.0,0.00014109,2]
[353111726,1739563885825,-2596.59,0.00014109,2]
[353111727,1739563885835,-763.37,0.00014109,2]
[353111728,1739563885844,-500.0,0.00014109,2]
[353111729,1739563885855,-787.22,0.00014109,2]
[353111730,1739563885865,-151.0,0.00014109,2]
[353111731,1739563885875,-500.0,0.00014109,2]
[353111732,1739563885885,-151.0,0.00014109,2]
[353111733,1739563885895,-1229.5,0.00014109,2]
[353111734,1739563885905,-1636.31,0.00014109,2]
[353111735,1739563885915,-790.1,0.00014109,2]
[353111736,1739563885925,-500.0,0.00014109,2]
[353111737,1739563885935,-2044.686389,0.00014109,2]
[353111738,1739563885945,-1878.57,0.00014109,2]
[353111739,1739563885956,-500.0,0.00014109,2]
[353111740,1739563885967,-707.21,0.00014109,2]
[353111741,1739563885977,-1018.1,0.00014109,2]
[353111742,1739563885987,-1364.44,0.00014109,2]
[353111743,1739563885997,-1211.82,0.00014109,2]
[353111744,1739563886007,-661.68,0.00014109,2]
[353111745,1739563886016,-500.0,0.00014109,2]
[353111746,1739563886027,-500.0,0.00014109,2]
[353111747,1739563886037,-4284.85,0.00014109,2]
[353111748,1739563886047,-3602.81,0.00014109,2]
[353111749,1739563886058,-1055.89,0.00014109,2]
[353111750,1739563886069,-1822.84,0.00014109,2]
[353111751,1739563886079,-521.88,0.00014109,2]
[353111752,1739563886090,-1380.9,0.00014109,2]
[353111753,1739563886099,-500.0,0.00014109,2]
[353111754,1739563886109,-500.0,0.00014109,2]
[353111755,1739563886119,-2099.924062,0.00014109,2]
[353111756,1739563886128,-1817.13,0.00014109,2]
[353111757,1739563886138,-151.0,0.00014109,2]
[353111758,1739563886147,-500.0,0.00014109,2]
[353111759,1739563886157,-569.83,0.00014109,2]
[353111760,1739563886167,-500.0,0.00014109,2]
[353111761,1739563886177,-509.46,0.00014109,2]
[353111762,1739563886187,-1973.5,0.00014109,2]
[353111763,1739563886196,-1999.09,0.00014109,2]
[353111764,1739563886205,-1754.23,0.00014109,2]
[353111765,1739563886215,-722.58,0.00014109,2]
[353111766,1739563886224,-3163.54,0.00014109,2]
[353111767,1739563886234,-777.3,0.00014109,2]
[353111768,1739563886243,-500.0,0.00014109,2]
[353111769,1739563886252,-1081.68,0.00014109,2]
[353111770,1739563886262,-500.0,0.00014109,2]
[353111771,1739563886272,-3073.51,0.00014109,2]
[353111772,1739563886283,-1849.21,0.00014109,2]
[353111773,1739563886293,-1876.88,0.00014109,2]
[353111774,1739563886304,-1636.36,0.00014109,2]
[353111775,1739563886313,-684.82,0.00014109,2]
[353111776,1739563886324,-500.0,0.00014109,2]
[353111777,1739563886334,-1258.75,0.00014109,2]
[353111778,1739563886344,-3451.8,0.00014109,2]
[353111779,1739563886355,-151.0,0.00014109,2]
[353111780,1739563886367,-2313.09,0.00014109,2]
[353111781,1739563886381,-525.63,0.00014109,2]
[353111782,1739563886391,-500.0,0.00014109,2]
[353111783,1739563886401,-2440.88,0.00014109,2]
[353111784,1739563886411,-594.57,0.00014109,2]
[353111785,1739563886423,-731.72,0.00014109,2]
[353111786,1739563886434,-641.14,0.00014109,2]
[353111787,1739563886444,-2262.39,0.00014109,2]
[353111788,1739563886454,-151.0,0.00014109,2]
[353111789,1739563886464,-500.0,0.00014109,2]
[353111790,1739563886475,-2756.09,0.00014109,2]
[353111791,1739563886485,-500.0,0.00014109,2]
[353111792,1739563886495,-565.96,0.00014109,2]
[353111793,1739563886505,-500.0,0.00014109,2]
[353111794,1739563886515,-500.0,0.00014109,2]
[353111795,1739563886526,-500.0,0.00014109,2]
[353111796,1739563886536,-500.0,0.00014109,2]
[353111797,1739563886546,-500.0,0.00014109,2]
[353111798,1739563886557,-1958.29,0.00014109,2]
[353111799,1739563886568,-1602.34,0.00014109,2]
[353111800,1739563886578,-500.0,0.00014109,2]
[353111801,1739563886589,-2803.98,0.00014109,2]
[353111802,1739563886599,-500.0,0.00014109,2]
[353111803,1739563886610,-835.64,0.00014109,2]
[353111804,1739563886620,-500.0,0.00014109,2]
[353111805,1739563886632,-4057.02,0.00014109,2]
[353111806,1739563886643,-2038.26,0.00014109,2]
[353111807,1739563886654,-1055.1,0.00014109,2]
[353111808,1739563886664,-1332.83,0.00014109,2]
[353111809,1739563886674,-1763.2,0.00014109,2]
[353111810,1739563886686,-500.0,0.00014109,2]
[353111811,1739563886697,-3381.25,0.00014109,2]
[353111812,1739563886707,-500.0,0.00014109,2]
[353111813,1739563886718,-500.0,0.00014109,2]
[353111814,1739563886729,-761.43,0.00014109,2]
[353111815,1739563886739,-2360.83,0.00014109,2]
[353111816,1739563886750,-3279.48,0.00014109,2]
[353111817,1739563886760,-1107.76,0.00014109,2]
[353111818,1739563886771,-151.0,0.00014109,2]